[Event "*** Titled Tuesday Blitz"]
[Site "Chess.com"]
[Date "2019.05.07"]
[Round "2"]
[White "SirStrateg"]
[Black "jcibarra"]
[Result "0-1"]
[WhiteElo "2529"]
[BlackElo "2712"]
[TimeControl "180+2"]
[EndTime "13:22:38 PDT"]
[Termination "jcibarra won by resignation"]

1. d4 {[%clk 0:03:00.6]} 1... Nf6 {[%clk 0:02:58.9]} 2. Nf3 {[%clk 0:03:01.8]}
2... g6 {[%clk 0:02:58.8]} 3. Bf4 {[%clk 0:03:02.6]} 3... d6 {[%clk 0:02:59.6]}
4. e3 {[%clk 0:03:04]} 4... Bg7 {[%clk 0:03:01.1]} 5. h3 {[%clk 0:03:05.5]} 5...
O-O {[%clk 0:03:02.7]} 6. Be2 {[%clk 0:03:07.2]} 6... c5 {[%clk 0:03:04.4]} 7.
c3 {[%clk 0:03:07.6]} 7... Be6 {[%clk 0:03:05.7]} 8. Nbd2 {[%clk 0:03:01]} 8...
Qb6 {[%clk 0:03:05.8]} 9. Qc1 {[%clk 0:02:49.4]} 9... Nc6 {[%clk 0:03:06.1]} 10.
O-O {[%clk 0:02:48.2]} 10... Rac8 {[%clk 0:03:06.4]} 11. a3 {[%clk 0:02:34.2]}
11... cxd4 {[%clk 0:02:59.7]} 12. exd4 {[%clk 0:02:34.9]} 12... Nd5 {[%clk
0:03:00.8]} 13. Bg3 {[%clk 0:02:33.4]} 13... Nxd4 {[%clk 0:03:00.7]} 14. Nxd4
{[%clk 0:02:28.8]} 14... Bxd4 {[%clk 0:03:02.6]} 15. Nc4 {[%clk 0:02:26.8]}
15... Nxc3 {[%clk 0:03:02]} 16. bxc3 {[%clk 0:02:19.3]} 16... Bxc4 {[%clk
0:03:03.2]} 17. Rb1 {[%clk 0:01:57.1]} 17... Qa5 {[%clk 0:02:24.2]} 18. Rd1
{[%clk 0:01:38.1]} 18... Bxc3 {[%clk 0:02:07.8]} 19. Bxc4 {[%clk 0:01:37.6]}
19... Rxc4 {[%clk 0:02:09.7]} 20. Rxb7 {[%clk 0:01:39.1]} 20... Qa6 {[%clk
0:02:05.4]} 21. Qb1 {[%clk 0:01:31.4]} 21... Bf6 {[%clk 0:02:04.6]} 22. Rb3
{[%clk 0:01:22.3]} 22... Rfc8 {[%clk 0:02:03.3]} 23. Rf3 {[%clk 0:01:23.2]}
23... Kg7 {[%clk 0:01:57]} 24. Kh2 {[%clk 0:01:04.3]} 24... Rc3 {[%clk
0:01:57.7]} 25. Rdd3 {[%clk 0:01:04.6]} 25... Rc1 {[%clk 0:01:50.5]} 26. Qb4
{[%clk 0:01:01.4]} 26... Qc4 {[%clk 0:01:38.5]} 27. Qb7 {[%clk 0:01:01.7]} 27...
Rc7 {[%clk 0:01:38.3]} 28. Qa8 {[%clk 0:01:02.8]} 28... Rf1 {[%clk 0:01:29.9]}
29. Bf4 {[%clk 0:00:52.1]} 29... e6 {[%clk 0:01:17.9]} 30. Bxd6 {[%clk
0:00:45.5]} 30... Rc8 {[%clk 0:01:18.3]} 31. Qxa7 {[%clk 0:00:39.8]} 31... Qc1
{[%clk 0:01:18.9]} 32. Rxf6 {[%clk 0:00:32.1]} 32... Rh1+ {[%clk 0:01:18.9]} 33.
Kg3 {[%clk 0:00:33.4]} 33... Qg5+ {[%clk 0:01:19.6]} 34. Kf3 {[%clk 0:00:34.4]}
34... Qxf6+ {[%clk 0:01:20]} 35. Kg3 {[%clk 0:00:35.1]} 35... Qg5+ {[%clk
0:01:19.8]} 36. Kf3 {[%clk 0:00:36.1]} 36... Qf5+ {[%clk 0:01:21.1]} 37. Kg3
{[%clk 0:00:36]} 37... Qxd3+ {[%clk 0:01:21.6]} 0-1

[Event "*** Titled Tuesday Blitz"]
[Site "Chess.com"]
[Date "2019.05.07"]
[Round "2"]
[White "ChessQueen"]
[Black "FrenchMonster2002"]
[Result "1-0"]
[WhiteElo "2648"]
[BlackElo "2386"]
[TimeControl "180+2"]
[EndTime "13:22:43 PDT"]
[Termination "ChessQueen won by resignation"]

1. e4 {[%clk 0:03:01.9]} 1... c5 {[%clk 0:03:01]} 2. c3 {[%clk 0:03:03]} 2...
Nf6 {[%clk 0:03:01.6]} 3. e5 {[%clk 0:03:03.8]} 3... Nd5 {[%clk 0:03:02.7]} 4.
d4 {[%clk 0:03:03.7]} 4... cxd4 {[%clk 0:03:04.6]} 5. Nf3 {[%clk 0:03:03.5]}
5... e6 {[%clk 0:03:05.4]} 6. cxd4 {[%clk 0:03:04.1]} 6... d6 {[%clk 0:03:05.7]}
7. Bd3 {[%clk 0:03:03.6]} 7... Be7 {[%clk 0:03:03.3]} 8. O-O {[%clk 0:03:03.9]}
8... b6 {[%clk 0:03:00.3]} 9. Nc3 {[%clk 0:03:03.9]} 9... Nxc3 {[%clk
0:02:57.6]} 10. bxc3 {[%clk 0:03:05.2]} 10... Bb7 {[%clk 0:02:58.6]} 11. Qe2
{[%clk 0:03:04.3]} 11... Nd7 {[%clk 0:02:55.6]} 12. exd6 {[%clk 0:03:01.6]}
12... Bxd6 {[%clk 0:02:56.6]} 13. c4 {[%clk 0:02:58]} 13... Qc7 {[%clk
0:02:10.9]} 14. h3 {[%clk 0:02:49.6]} 14... O-O-O {[%clk 0:01:47.5]} 15. Bb2
{[%clk 0:02:43.8]} 15... Kb8 {[%clk 0:01:43.6]} 16. a4 {[%clk 0:02:41.5]} 16...
g5 {[%clk 0:01:21.4]} 17. a5 {[%clk 0:02:39]} 17... h5 {[%clk 0:01:20.2]} 18.
axb6 {[%clk 0:02:39.6]} 18... axb6 {[%clk 0:01:15.5]} 19. c5 {[%clk 0:02:38.9]}
19... Bf4 {[%clk 0:00:51.5]} 20. Be4 {[%clk 0:02:19.9]} 20... g4 {[%clk
0:00:46.5]} 21. c6 {[%clk 0:01:43.1]} 21... Bxc6 {[%clk 0:00:35.5]} 22. Bxc6
{[%clk 0:01:29.3]} 22... Qxc6 {[%clk 0:00:37.4]} 23. d5 {[%clk 0:01:24.6]} 23...
gxf3 {[%clk 0:00:32.3]} 24. Qxf3 {[%clk 0:01:25.8]} 24... Qxd5 {[%clk
0:00:21.6]} 25. Qxf4+ {[%clk 0:01:24.7]} 25... e5 {[%clk 0:00:23.2]} 26. Qa4
{[%clk 0:01:21.8]} 26... Qb7 {[%clk 0:00:23.2]} 27. Qb5 {[%clk 0:01:05.8]} 27...
Rhg8 {[%clk 0:00:23.9]} 28. Bxe5+ {[%clk 0:01:04.9]} 28... Nxe5 {[%clk
0:00:23.4]} 29. Qxe5+ {[%clk 0:01:05.9]} 29... Kc8 {[%clk 0:00:16.2]} 30. Rac1+
{[%clk 0:01:05.4]} 30... Kd7 {[%clk 0:00:16.4]} 31. Rfd1+ {[%clk 0:01:06.5]} 1-0

[Event "*** Titled Tuesday Blitz"]
[Site "Chess.com"]
[Date "2019.05.07"]
[Round "2"]
[White "DenishevM"]
[Black "Al_Shima"]
[Result "0-1"]
[WhiteElo "2598"]
[BlackElo "2411"]
[TimeControl "180+2"]
[EndTime "13:22:44 PDT"]
[Termination "Al_Shima won by resignation"]

1. d4 {[%clk 0:03:01.9]} 1... Nf6 {[%clk 0:02:50.9]} 2. c4 {[%clk 0:03:02.2]}
2... Nc6 {[%clk 0:02:51.3]} 3. Nc3 {[%clk 0:02:57.6]} 3... e5 {[%clk 0:02:51]}
4. d5 {[%clk 0:02:50.8]} 4... Ne7 {[%clk 0:02:51.7]} 5. Nf3 {[%clk 0:02:48.7]}
5... Ng6 {[%clk 0:02:51.3]} 6. h4 {[%clk 0:02:46.3]} 6... h5 {[%clk 0:02:47]} 7.
Bg5 {[%clk 0:02:45.5]} 7... Be7 {[%clk 0:02:44.9]} 8. e3 {[%clk 0:02:32.4]} 8...
d6 {[%clk 0:02:36.7]} 9. Qc2 {[%clk 0:02:29.9]} 9... Ng4 {[%clk 0:02:26.9]} 10.
Bxe7 {[%clk 0:02:26.6]} 10... Nxe7 {[%clk 0:02:26.5]} 11. Bd3 {[%clk 0:02:23.3]}
11... f5 {[%clk 0:02:26.3]} 12. Ng5 {[%clk 0:02:22.4]} 12... e4 {[%clk
0:02:26.9]} 13. Be2 {[%clk 0:02:20.1]} 13... Ng6 {[%clk 0:02:20.5]} 14. Nb5
{[%clk 0:01:50.9]} 14... a6 {[%clk 0:02:17.5]} 15. Nd4 {[%clk 0:01:50.8]} 15...
Nxh4 {[%clk 0:02:02.3]} 16. Nde6 {[%clk 0:01:38.6]} 16... Nxg2+ {[%clk 0:02:01]}
17. Kd2 {[%clk 0:01:39.1]} 17... Bxe6 {[%clk 0:01:59.4]} 18. Nxe6 {[%clk
0:01:41]} 18... Qe7 {[%clk 0:01:58.8]} 19. Rag1 {[%clk 0:01:39.3]} 19... Nh4
{[%clk 0:01:54.5]} 20. Qb3 {[%clk 0:00:49]} 20... b6 {[%clk 0:01:42.7]} 21. Qa4+
{[%clk 0:00:44.8]} 21... Kf7 {[%clk 0:01:41.2]} 22. Qc6 {[%clk 0:00:19.3]} 22...
Rac8 {[%clk 0:01:38.2]} 23. Qa4 {[%clk 0:00:12.2]} 23... a5 {[%clk 0:01:38]} 24.
Qb3 {[%clk 0:00:12.9]} 24... Ng6 {[%clk 0:01:27.2]} 25. Qc3 {[%clk 0:00:06.7]}
25... N6e5 {[%clk 0:01:26]} 26. b3 {[%clk 0:00:08.3]} 26... g6 {[%clk
0:01:21.6]} 27. a3 {[%clk 0:00:08]} 27... Nxf2 {[%clk 0:01:21]} 28. Rh2 {[%clk
0:00:04.8]} 28... Nfg4 {[%clk 0:01:19.6]} 29. Rhg2 {[%clk 0:00:06.3]} 29... Qf6
{[%clk 0:01:16.9]} 30. Ke1 {[%clk 0:00:04.3]} 30... Nf3+ {[%clk 0:01:15.4]} 0-1

[Event "*** Titled Tuesday Blitz"]
[Site "Chess.com"]
[Date "2019.05.07"]
[Round "2"]
[White "Cocaino74"]
[Black "1e41-0"]
[Result "0-1"]
[WhiteElo "2278"]
[BlackElo "2462"]
[TimeControl "180+2"]
[EndTime "13:22:46 PDT"]
[Termination "1e41-0 won by resignation"]

1. Nf3 {[%clk 0:03:01.7]} 1... d5 {[%clk 0:02:59.8]} 2. g3 {[%clk 0:03:02.8]}
2... c6 {[%clk 0:02:59.8]} 3. Bg2 {[%clk 0:03:03.1]} 3... Bg4 {[%clk 0:03:01.3]}
4. h3 {[%clk 0:02:55.8]} 4... Bxf3 {[%clk 0:02:55.9]} 5. Bxf3 {[%clk 0:02:57.7]}
5... e6 {[%clk 0:02:57.3]} 6. O-O {[%clk 0:02:41.4]} 6... Nd7 {[%clk 0:02:56.9]}
7. d3 {[%clk 0:02:38.1]} 7... Bd6 {[%clk 0:02:54.2]} 8. c4 {[%clk 0:02:37.3]}
8... Ngf6 {[%clk 0:02:54.3]} 9. Qb3 {[%clk 0:02:25.2]} 9... Qc7 {[%clk
0:02:50.5]} 10. Bg2 {[%clk 0:02:17.3]} 10... h5 {[%clk 0:02:49.9]} 11. Bg5
{[%clk 0:02:13.4]} 11... Ne5 {[%clk 0:02:38.5]} 12. Nd2 {[%clk 0:02:05.1]} 12...
Ng6 {[%clk 0:02:38.6]} 13. cxd5 {[%clk 0:01:49.7]} 13... exd5 {[%clk 0:02:38.5]}
14. Bxf6 {[%clk 0:01:38.9]} 14... gxf6 {[%clk 0:02:38.7]} 15. Rac1 {[%clk
0:01:39.8]} 15... h4 {[%clk 0:02:35.3]} 16. g4 {[%clk 0:01:25.8]} 16... Nf4
{[%clk 0:02:34.3]} 17. Kh1 {[%clk 0:01:12.7]} 17... f5 {[%clk 0:02:35.6]} 18.
gxf5 {[%clk 0:01:01.6]} 18... O-O-O {[%clk 0:02:31.5]} 19. Bf3 {[%clk
0:00:37.1]} 19... Nxh3 {[%clk 0:02:29.3]} 20. Bxd5 {[%clk 0:00:31.8]} 20... Bf4
{[%clk 0:02:04.2]} 21. e3 {[%clk 0:00:07]} 21... Rxd5 {[%clk 0:02:03.5]} 22.
Qxd5 {[%clk 0:00:08.4]} 22... cxd5 {[%clk 0:01:57.3]} 23. exf4 {[%clk
0:00:09.9]} 23... Nxf2+ {[%clk 0:01:57.5]} 24. Kg2 {[%clk 0:00:08.9]} 24... Nxd3
{[%clk 0:01:58.6]} 25. Rxc7+ {[%clk 0:00:09.4]} 25... Kxc7 {[%clk 0:02:00.3]}
26. Rf3 {[%clk 0:00:04.1]} 26... Nxb2 {[%clk 0:01:53.6]} 27. Rc3+ {[%clk
0:00:05.2]} 27... Kd6 {[%clk 0:01:52.9]} 28. Nf3 {[%clk 0:00:05.4]} 28... Nc4
{[%clk 0:01:53]} 29. Kh3 {[%clk 0:00:05.1]} 29... b5 {[%clk 0:01:49.5]} 30. Nxh4
{[%clk 0:00:04.7]} 30... d4 {[%clk 0:01:50.7]} 31. Rd3 {[%clk 0:00:05.4]} 31...
Kd5 {[%clk 0:01:51]} 32. Kg4 {[%clk 0:00:05.7]} 32... Ke4 {[%clk 0:01:51.6]} 33.
Rh3 {[%clk 0:00:03.6]} 33... Ne3+ {[%clk 0:01:51.6]} 34. Kg3 {[%clk 0:00:04.1]}
34... d3 {[%clk 0:01:45.7]} 35. Kf2 {[%clk 0:00:05.6]} 35... Nxf5 {[%clk
0:01:43.7]} 36. Nxf5 {[%clk 0:00:03]} 36... Rxh3 {[%clk 0:01:43.4]} 0-1

[Event "*** Titled Tuesday Blitz"]
[Site "Chess.com"]
[Date "2019.05.07"]
[Round "2"]
[White "penguingm1"]
[Black "Alopekos"]
[Result "1-0"]
[WhiteElo "2908"]
[BlackElo "2579"]
[TimeControl "180+2"]
[EndTime "13:22:58 PDT"]
[Termination "penguingm1 won on time"]

1. d4 {[%clk 0:03:01.9]} 1... Nf6 {[%clk 0:03:00.8]} 2. c4 {[%clk 0:03:02.6]}
2... e6 {[%clk 0:03:02.1]} 3. Nc3 {[%clk 0:03:03.8]} 3... d5 {[%clk 0:03:03.3]}
4. cxd5 {[%clk 0:03:04.4]} 4... Nxd5 {[%clk 0:03:05.2]} 5. e4 {[%clk 0:03:05.3]}
5... Nxc3 {[%clk 0:03:06.2]} 6. bxc3 {[%clk 0:03:07.2]} 6... c5 {[%clk
0:03:07.8]} 7. Nf3 {[%clk 0:03:07.8]} 7... cxd4 {[%clk 0:03:09.3]} 8. cxd4
{[%clk 0:03:09.7]} 8... Bb4+ {[%clk 0:03:10.6]} 9. Bd2 {[%clk 0:03:11]} 9...
Bxd2+ {[%clk 0:03:12.2]} 10. Qxd2 {[%clk 0:03:12.9]} 10... O-O {[%clk
0:03:13.9]} 11. Rc1 {[%clk 0:03:14.4]} 11... b6 {[%clk 0:03:04.9]} 12. Bd3
{[%clk 0:03:15.3]} 12... Bb7 {[%clk 0:03:05.6]} 13. O-O {[%clk 0:03:15.6]} 13...
Nd7 {[%clk 0:03:02.9]} 14. Qf4 {[%clk 0:03:15.9]} 14... Nf6 {[%clk 0:02:54.1]}
15. g4 {[%clk 0:03:16.1]} 15... e5 {[%clk 0:02:15.8]} 16. Qxe5 {[%clk
0:01:43.5]} 16... Re8 {[%clk 0:01:38.4]} 17. Qc7 {[%clk 0:01:35.6]} 17... Bxe4
{[%clk 0:01:39]} 18. Bxe4 {[%clk 0:01:29.1]} 18... Rxe4 {[%clk 0:01:33.4]} 19.
h3 {[%clk 0:01:01.9]} 19... Qd5 {[%clk 0:00:24.1]} 20. Qc6 {[%clk 0:00:50.4]}
20... h6 {[%clk 0:00:06.3]} 21. Qxd5 {[%clk 0:00:47.3]} 21... Nxd5 {[%clk
0:00:08.2]} 22. Rfe1 {[%clk 0:00:47.7]} 22... Rae8 {[%clk 0:00:09.1]} 23. Rxe4
{[%clk 0:00:47]} 23... Rxe4 {[%clk 0:00:11]} 24. Kf1 {[%clk 0:00:46.6]} 24...
Nf4 {[%clk 0:00:10.1]} 25. h4 {[%clk 0:00:46.7]} 25... Re2 {[%clk 0:00:05.3]}
26. d5 {[%clk 0:00:43.1]} 1-0

[Event "*** Titled Tuesday Blitz"]
[Site "Chess.com"]
[Date "2019.05.07"]
[Round "2"]
[White "vovachesss"]
[Black "Orest_Vovk"]
[Result "1-0"]
[WhiteElo "2525"]
[BlackElo "2434"]
[TimeControl "180+2"]
[EndTime "13:22:58 PDT"]
[Termination "vovachesss won by resignation"]

1. e4 {[%clk 0:03:01.9]} 1... e5 {[%clk 0:02:58.5]} 2. Nf3 {[%clk 0:02:58.6]}
2... Nf6 {[%clk 0:02:59.4]} 3. Nc3 {[%clk 0:02:57.4]} 3... Nc6 {[%clk
0:02:59.7]} 4. d4 {[%clk 0:02:55.4]} 4... exd4 {[%clk 0:02:59.2]} 5. Nxd4 {[%clk
0:02:57.3]} 5... Bc5 {[%clk 0:02:47.3]} 6. Nxc6 {[%clk 0:02:56.4]} 6... bxc6
{[%clk 0:02:46.9]} 7. Bd3 {[%clk 0:02:57]} 7... d5 {[%clk 0:02:44.5]} 8. exd5
{[%clk 0:02:57.2]} 8... Nxd5 {[%clk 0:02:33.5]} 9. Ne4 {[%clk 0:02:53.5]} 9...
Be7 {[%clk 0:02:28.3]} 10. O-O {[%clk 0:02:52.7]} 10... O-O {[%clk 0:02:28.2]}
11. Qh5 {[%clk 0:02:49.5]} 11... g6 {[%clk 0:02:07.1]} 12. Qh6 {[%clk
0:02:50.5]} 12... Re8 {[%clk 0:01:57.8]} 13. Ng5 {[%clk 0:02:28.5]} 13... Bxg5
{[%clk 0:01:13]} 14. Bxg5 {[%clk 0:02:30.4]} 14... Qd6 {[%clk 0:01:10.5]} 15.
Rfe1 {[%clk 0:02:15.3]} 15... Bd7 {[%clk 0:01:10]} 16. h4 {[%clk 0:02:02.1]}
16... Rxe1+ {[%clk 0:01:05.6]} 17. Rxe1 {[%clk 0:02:02.8]} 17... Re8 {[%clk
0:01:07.3]} 18. Rxe8+ {[%clk 0:02:00.1]} 18... Bxe8 {[%clk 0:01:09.2]} 19. h5
{[%clk 0:01:56.8]} 19... Qf8 {[%clk 0:00:48.6]} 20. hxg6 {[%clk 0:01:53.9]}
20... Qxh6 {[%clk 0:00:40.3]} 21. gxf7+ {[%clk 0:01:52.3]} 21... Bxf7 {[%clk
0:00:42.2]} 22. Bxh6 {[%clk 0:01:53.4]} 22... Nb4 {[%clk 0:00:41.5]} 23. Be4
{[%clk 0:01:38.9]} 23... Nxa2 {[%clk 0:00:25.2]} 24. Bxc6 {[%clk 0:01:38.1]}
24... Nb4 {[%clk 0:00:26.7]} 25. Ba4 {[%clk 0:01:28.7]} 25... Bg6 {[%clk
0:00:16.4]} 26. c3 {[%clk 0:01:26.8]} 26... Nd3 {[%clk 0:00:16.1]} 27. b4 {[%clk
0:01:26]} 27... Kf7 {[%clk 0:00:13.7]} 28. Be3 {[%clk 0:01:17.6]} 28... a6
{[%clk 0:00:13.9]} 29. Bb3+ {[%clk 0:01:16.8]} 29... Ke7 {[%clk 0:00:14.3]} 30.
Bc4 {[%clk 0:01:18.2]} 30... Ne5 {[%clk 0:00:09.5]} 31. Bxa6 {[%clk 0:01:19.4]}
31... Ke6 {[%clk 0:00:09.8]} 32. f4 {[%clk 0:01:14.6]} 32... Ng4 {[%clk
0:00:10.4]} 33. Bd4 {[%clk 0:01:11.4]} 33... Be4 {[%clk 0:00:11.5]} 34. Bc8+
{[%clk 0:01:11.2]} 1-0

[Event "*** Titled Tuesday Blitz"]
[Site "Chess.com"]
[Date "2019.05.07"]
[Round "2"]
[White "M1711"]
[Black "DanielRensch"]
[Result "0-1"]
[WhiteElo "2447"]
[BlackElo "2453"]
[TimeControl "180+2"]
[EndTime "13:23:08 PDT"]
[Termination "DanielRensch won on time"]

1. d4 {[%clk 0:03:01.9]} 1... Nf6 {[%clk 0:02:42.8]} 2. Bg5 {[%clk 0:03:02.4]}
2... c5 {[%clk 0:02:44.2]} 3. d5 {[%clk 0:03:03]} 3... b5 {[%clk 0:02:45.4]} 4.
Bxf6 {[%clk 0:02:53.5]} 4... gxf6 {[%clk 0:02:46.1]} 5. e4 {[%clk 0:02:53.6]}
5... d6 {[%clk 0:02:47.2]} 6. Bxb5+ {[%clk 0:02:53.8]} 6... Nd7 {[%clk
0:02:48.1]} 7. Nc3 {[%clk 0:02:46.1]} 7... f5 {[%clk 0:02:49.2]} 8. exf5 {[%clk
0:02:43.7]} 8... Rb8 {[%clk 0:02:50.5]} 9. Qe2 {[%clk 0:02:36.7]} 9... Bg7
{[%clk 0:02:51.1]} 10. Nf3 {[%clk 0:02:12.3]} 10... Bxc3+ {[%clk 0:02:51.4]} 11.
bxc3 {[%clk 0:02:13.2]} 11... Qa5 {[%clk 0:02:53.3]} 12. Bxd7+ {[%clk
0:02:08.3]} 12... Bxd7 {[%clk 0:02:55.2]} 13. O-O {[%clk 0:02:08.6]} 13... Qxc3
{[%clk 0:02:51.6]} 14. Rab1 {[%clk 0:01:50.7]} 14... Rb6 {[%clk 0:02:22.4]} 15.
Rfe1 {[%clk 0:01:17.3]} 15... Qf6 {[%clk 0:02:17.2]} 16. g4 {[%clk 0:00:43.7]}
16... Rg8 {[%clk 0:01:21.9]} 17. Rxb6 {[%clk 0:00:44.6]} 17... axb6 {[%clk
0:01:22.7]} 18. g5 {[%clk 0:00:20.7]} 18... h6 {[%clk 0:01:22.3]} 19. h4 {[%clk
0:00:21.8]} 19... hxg5 {[%clk 0:01:22.8]} 20. hxg5 {[%clk 0:00:18.9]} 20... Bxf5
{[%clk 0:01:23.6]} 21. Qb5+ {[%clk 0:00:03.3]} 21... Kf8 {[%clk 0:00:47.9]} 22.
Qxb6 {[%clk 0:00:04.3]} 22... Rxg5+ {[%clk 0:00:48.9]} 23. Nxg5 {[%clk
0:00:05.2]} 23... Qxg5+ {[%clk 0:00:50.8]} 24. Kf1 {[%clk 0:00:03.7]} 24... Bh3+
{[%clk 0:00:51.9]} 25. Ke2 {[%clk 0:00:05.1]} 25... Qe5+ {[%clk 0:00:47.7]} 26.
Kd2 {[%clk 0:00:05]} 26... Qf4+ {[%clk 0:00:41.6]} 0-1

[Event "*** Titled Tuesday Blitz"]
[Site "Chess.com"]
[Date "2019.05.07"]
[Round "2"]
[White "EuropeanChampion"]
[Black "Simoncelli15"]
[Result "1-0"]
[WhiteElo "2346"]
[BlackElo "2257"]
[TimeControl "180+2"]
[EndTime "13:23:17 PDT"]
[Termination "EuropeanChampion won by resignation"]

1. d4 {[%clk 0:02:59.2]} 1... Nf6 {[%clk 0:02:56.1]} 2. Nc3 {[%clk 0:02:51.8]}
2... e6 {[%clk 0:02:54.7]} 3. Bf4 {[%clk 0:02:43.9]} 3... d5 {[%clk 0:02:50.9]}
4. e3 {[%clk 0:02:43.8]} 4... c5 {[%clk 0:02:36.4]} 5. dxc5 {[%clk 0:02:38.9]}
5... Bxc5 {[%clk 0:02:38.3]} 6. Bd3 {[%clk 0:02:37.6]} 6... O-O {[%clk
0:02:38.5]} 7. Nge2 {[%clk 0:02:38.5]} 7... Nc6 {[%clk 0:02:34.1]} 8. e4 {[%clk
0:02:39]} 8... dxe4 {[%clk 0:02:19.5]} 9. Nxe4 {[%clk 0:02:38.3]} 9... Nxe4
{[%clk 0:02:21]} 10. Bxe4 {[%clk 0:02:39.9]} 10... Qf6 {[%clk 0:02:21.6]} 11.
O-O {[%clk 0:02:37.4]} 11... Rd8 {[%clk 0:02:14.7]} 12. Qc1 {[%clk 0:02:36]}
12... Bd7 {[%clk 0:02:13.7]} 13. Bg5 {[%clk 0:02:36.2]} 13... Qe5 {[%clk
0:02:12.1]} 14. Bxd8 {[%clk 0:02:36.9]} 14... Qxe4 {[%clk 0:02:05.8]} 15. Ng3
{[%clk 0:02:29.1]} 15... Qg6 {[%clk 0:02:06.7]} 16. Bg5 {[%clk 0:02:22.6]} 16...
f6 {[%clk 0:02:02.3]} 17. Be3 {[%clk 0:02:23.2]} 17... Be7 {[%clk 0:01:56.8]}
18. Rd1 {[%clk 0:02:23.4]} 18... Be8 {[%clk 0:01:56.9]} 19. Qd2 {[%clk
0:02:23.6]} 19... h5 {[%clk 0:01:50.7]} 20. Qd3 {[%clk 0:02:23.4]} 20... Qg4
{[%clk 0:01:44.6]} 21. h3 {[%clk 0:02:10.3]} 21... Qb4 {[%clk 0:01:35.6]} 22.
Qb3 {[%clk 0:02:10.6]} 22... Qxb3 {[%clk 0:01:32.1]} 23. axb3 {[%clk 0:02:11.2]}
23... h4 {[%clk 0:01:33.2]} 24. Ne4 {[%clk 0:02:10]} 24... Nb4 {[%clk
0:01:33.2]} 25. Rxa7 {[%clk 0:02:05.9]} 25... Rb8 {[%clk 0:01:24.2]} 26. Bc5
{[%clk 0:02:00.7]} 26... Nc6 {[%clk 0:01:08.6]} 27. Raa1 {[%clk 0:01:52.3]}
27... Bg6 {[%clk 0:00:53.8]} 28. Bxe7 {[%clk 0:01:36.7]} 28... Bxe4 {[%clk
0:00:53.7]} 29. Bd6 {[%clk 0:01:37.7]} 29... Rd8 {[%clk 0:00:51.8]} 30. Bc7
{[%clk 0:01:32.1]} 30... Rc8 {[%clk 0:00:50.6]} 31. Rd7 {[%clk 0:01:23.5]} 31...
e5 {[%clk 0:00:44.1]} 32. Bb6 {[%clk 0:01:03.9]} 32... Bxc2 {[%clk 0:00:41.5]}
33. Rc1 {[%clk 0:01:04.2]} 33... Bxb3 {[%clk 0:00:35.2]} 34. Rxb7 {[%clk
0:01:05.1]} 34... Bd5 {[%clk 0:00:19.3]} 35. Rd7 {[%clk 0:01:05]} 35... Rb8
{[%clk 0:00:19.6]} 36. Rxd5 {[%clk 0:01:04.9]} 36... Rxb6 {[%clk 0:00:20.8]} 37.
Rd6 {[%clk 0:01:06.8]} 1-0

[Event "*** Titled Tuesday Blitz"]
[Site "Chess.com"]
[Date "2019.05.07"]
[Round "2"]
[White "TargetA"]
[Black "scaryninja"]
[Result "1-0"]
[WhiteElo "2438"]
[BlackElo "2479"]
[TimeControl "180+2"]
[EndTime "13:23:18 PDT"]
[Termination "TargetA won by checkmate"]

1. e4 {[%clk 0:03:01.9]} 1... c5 {[%clk 0:03:00.2]} 2. Nf3 {[%clk 0:03:01.8]}
2... e6 {[%clk 0:03:01.3]} 3. d4 {[%clk 0:03:01.9]} 3... cxd4 {[%clk 0:03:03.2]}
4. Nxd4 {[%clk 0:03:02.9]} 4... a6 {[%clk 0:03:03.5]} 5. Bd3 {[%clk 0:03:01.4]}
5... Qc7 {[%clk 0:03:01.8]} 6. O-O {[%clk 0:02:57.7]} 6... d6 {[%clk 0:03:01.4]}
7. Nc3 {[%clk 0:02:55]} 7... Nf6 {[%clk 0:03:00.1]} 8. Qe2 {[%clk 0:02:51.5]}
8... Be7 {[%clk 0:03:00.8]} 9. a4 {[%clk 0:02:49.8]} 9... Nbd7 {[%clk
0:03:01.8]} 10. Kh1 {[%clk 0:02:46.6]} 10... O-O {[%clk 0:03:02.9]} 11. f4
{[%clk 0:02:47.9]} 11... b6 {[%clk 0:03:00.6]} 12. Bd2 {[%clk 0:02:44.5]} 12...
Bb7 {[%clk 0:03:00.5]} 13. Rae1 {[%clk 0:02:43.1]} 13... g6 {[%clk 0:02:58.9]}
14. f5 {[%clk 0:02:40.9]} 14... Nc5 {[%clk 0:02:46.8]} 15. Bh6 {[%clk
0:02:21.6]} 15... e5 {[%clk 0:02:17.1]} 16. Bxf8 {[%clk 0:02:11.7]} 16... Bxf8
{[%clk 0:02:11.1]} 17. fxg6 {[%clk 0:01:35.3]} 17... hxg6 {[%clk 0:02:03.2]} 18.
Rxf6 {[%clk 0:01:33.7]} 18... exd4 {[%clk 0:02:02.3]} 19. Nd5 {[%clk 0:01:32.7]}
19... Bxd5 {[%clk 0:02:02.3]} 20. exd5 {[%clk 0:01:34.6]} 20... Bg7 {[%clk
0:02:00.9]} 21. Rf2 {[%clk 0:01:18.7]} 21... Nxa4 {[%clk 0:01:35.4]} 22. Bxg6
{[%clk 0:00:53.6]} 22... fxg6 {[%clk 0:01:19.8]} 23. Qe6+ {[%clk 0:00:52.8]}
23... Kh7 {[%clk 0:01:11.8]} 24. Rf7 {[%clk 0:00:38.4]} 24... Qxc2 {[%clk
0:01:05.5]} 25. h3 {[%clk 0:00:18.5]} 25... Qd2 {[%clk 0:00:51]} 26. Re4 {[%clk
0:00:11.8]} 26... Qh6 {[%clk 0:00:37.9]} 27. Qe7 {[%clk 0:00:12.7]} 27... d3
{[%clk 0:00:31.5]} 28. Rh4 {[%clk 0:00:11.7]} 28... d2 {[%clk 0:00:27.4]} 29.
Rxg7+ {[%clk 0:00:12]} 29... Kh8 {[%clk 0:00:27.3]} 30. Rxh6# {[%clk 0:00:13.9]}
1-0